[Event "Titled Tuesday Blitz January 03 Early 2023"]
[White "Ansh M Shah"]
[Black "Krysa, Leandro"]
[WhiteFideId "25033379"]
[BlackFideId "116807"]
[WhiteElo "2171"]
[BlackElo "2541"]
[Result "0-1"]
[Round "04"]
[TimeControl "180+2"]
[Date "2023.01.03"]
[WhiteClock "0:00:35"]
[BlackClock "0:00:22"]

1. d4 {[%clk 0:03:00]}  d5 {[%clk 0:02:58]} 2. c4 {[%clk 0:03:00]}  c6 {[%clk 0:02:58]} 3. cxd5 {[%clk 0:03:00]}  cxd5 {[%clk 0:02:58]} 4. Nc3 {[%clk 0:03:01]}  Nc6 {[%clk 0:02:56]} 5. Bf4 {[%clk 0:03:01]}  Nf6 {[%clk 0:02:53]} 6. e3 {[%clk 0:03:00]}  a6 {[%clk 0:02:53]} 7. Rc1 {[%clk 0:03:00]}  e6 {[%clk 0:02:29]} 8. Bd3 {[%clk 0:02:58]}  Bd6 {[%clk 0:02:24]} 9. Bxd6 {[%clk 0:02:57]}  Qxd6 {[%clk 0:02:25]} 10. f4 {[%clk 0:02:58]}  O-O {[%clk 0:02:21]} 11. Nf3 {[%clk 0:02:57]}  Bd7 {[%clk 0:02:13]} 12. O-O {[%clk 0:02:54]}  Rfc8 {[%clk 0:02:11]} 13. Ne5 {[%clk 0:02:54]}  Be8 {[%clk 0:02:11]} 14. Na4 {[%clk 0:02:15]}  Nb4 {[%clk 0:01:58]} 15. Rxc8 {[%clk 0:01:47]}  Rxc8 {[%clk 0:01:58]} 16. Bb1 {[%clk 0:01:46]}  Bb5 {[%clk 0:01:49]} 17. Rf3 {[%clk 0:01:31]}  h6 {[%clk 0:01:14]} 18. Nc3 {[%clk 0:01:29]}  Be8 {[%clk 0:00:58]} 19. a3 {[%clk 0:01:27]}  Nc6 {[%clk 0:00:57]} 20. Qd3 {[%clk 0:01:25]}  Ne7 {[%clk 0:00:51]} 21. g4 {[%clk 0:01:24]}  Ng6 {[%clk 0:00:49]} 22. Nxg6 {[%clk 0:01:22]}  fxg6 {[%clk 0:00:48]} 23. h3 {[%clk 0:01:22]}  Ne4 {[%clk 0:00:35]} 24. Ne2 {[%clk 0:00:47]}  Bb5 {[%clk 0:00:33]} 25. Qd1 {[%clk 0:00:44]}  Bxe2 {[%clk 0:00:33]} 26. Qxe2 {[%clk 0:00:45]}  Rc1+ {[%clk 0:00:32]} 27. Rf1 {[%clk 0:00:45]}  Ng3 {[%clk 0:00:33]} 28. Qd2 {[%clk 0:00:40]}  Rxf1+ {[%clk 0:00:31]} 29. Kg2 {[%clk 0:00:40]}  Rxb1 {[%clk 0:00:31]} 30. Qc2 {[%clk 0:00:37]}  Re1 {[%clk 0:00:24]} 31. Kxg3 {[%clk 0:00:36]}  Rxe3+ {[%clk 0:00:23]} 32. Kg2 {[%clk 0:00:35]}  Qxf4 {[%clk 0:00:22]} 0-1


[Site "https://www.chess.com"]

[Event "Titled Tuesday Blitz January 03 Early 2023"]
[White "Rostomyan, Mikayel"]
[Black "Leschinsky, Gary"]
[WhiteFideId "13313754"]
[BlackFideId "30951321"]
[WhiteElo "2222"]
[BlackElo "1969"]
[Result "1-0"]
[Round "04"]
[TimeControl "180+2"]
[Date "2023.01.03"]
[WhiteClock "0:00:18"]
[BlackClock "0:00:33"]

1. d4 {[%clk 0:03:00]}  d5 {[%clk 0:02:59]} 2. Nf3 {[%clk 0:02:59]}  Nf6 {[%clk 0:02:57]} 3. c4 {[%clk 0:03:00]}  e6 {[%clk 0:02:54]} 4. g3 {[%clk 0:03:00]}  Be7 {[%clk 0:02:52]} 5. Bg2 {[%clk 0:03:00]}  O-O {[%clk 0:02:53]} 6. O-O {[%clk 0:03:00]}  dxc4 {[%clk 0:02:52]} 7. Qc2 {[%clk 0:03:01]}  b6 {[%clk 0:02:49]} 8. Qxc4 {[%clk 0:02:53]}  Bb7 {[%clk 0:02:47]} 9. Nc3 {[%clk 0:02:51]}  Nbd7 {[%clk 0:02:46]} 10. Qd3 {[%clk 0:02:49]}  c5 {[%clk 0:02:45]} 11. b3 {[%clk 0:02:35]}  cxd4 {[%clk 0:02:42]} 12. Qxd4 {[%clk 0:02:31]}  Bc5 {[%clk 0:02:38]} 13. Qh4 {[%clk 0:02:30]}  Nd5 {[%clk 0:02:37]} 14. Nxd5 {[%clk 0:02:27]}  Qxh4 {[%clk 0:02:29]} 15. Nxh4 {[%clk 0:02:28]}  Bxd5 {[%clk 0:02:23]} 16. Bxd5 {[%clk 0:02:26]}  exd5 {[%clk 0:02:21]} 17. Bb2 {[%clk 0:02:26]}  Rfe8 {[%clk 0:02:18]} 18. e3 {[%clk 0:02:24]}  Rad8 {[%clk 0:01:59]} 19. Rad1 {[%clk 0:02:19]}  Ne5 {[%clk 0:01:57]} 20. Kg2 {[%clk 0:02:14]}  f6 {[%clk 0:01:54]} 21. Rd2 {[%clk 0:02:12]}  Kf7 {[%clk 0:01:52]} 22. Rfd1 {[%clk 0:02:09]}  Ke6 {[%clk 0:01:44]} 23. e4 {[%clk 0:02:01]}  d4 {[%clk 0:01:43]} 24. Nf5 {[%clk 0:01:53]}  Rd7 {[%clk 0:01:35]} 25. Nxd4+ {[%clk 0:01:51]}  Bxd4 {[%clk 0:01:34]} 26. Rxd4 {[%clk 0:01:51]}  Rxd4 {[%clk 0:01:32]} 27. Rxd4 {[%clk 0:01:52]}  Rc8 {[%clk 0:01:32]} 28. Rd2 {[%clk 0:01:48]}  g5 {[%clk 0:01:31]} 29. h3 {[%clk 0:01:47]}  h5 {[%clk 0:01:31]} 30. f4 {[%clk 0:01:45]}  gxf4 {[%clk 0:01:28]} 31. gxf4 {[%clk 0:01:46]}  Nf7 {[%clk 0:01:23]} 32. Kf3 {[%clk 0:01:37]}  f5 {[%clk 0:01:17]} 33. e5 {[%clk 0:01:13]}  Rg8 {[%clk 0:01:07]} 34. Rc2 {[%clk 0:01:07]}  Kd7 {[%clk 0:01:07]} 35. Bd4 {[%clk 0:00:59]}  Nd8 {[%clk 0:01:01]} 36. Bf2 {[%clk 0:00:58]}  Ne6 {[%clk 0:01:01]} 37. Rd2+ {[%clk 0:00:57]}  Ke7 {[%clk 0:01:01]} 38. Bh4+ {[%clk 0:00:56]}  Ke8 {[%clk 0:00:49]} 39. Rd6 {[%clk 0:00:51]}  Kf7 {[%clk 0:00:49]} 40. Rd7+ {[%clk 0:00:48]}  Kg6 {[%clk 0:00:49]} 41. Rd6 {[%clk 0:00:24]}  Kf7 {[%clk 0:00:49]} 42. Rd7+ {[%clk 0:00:20]}  Kg6 {[%clk 0:00:48]} 43. Rxa7 {[%clk 0:00:21]}  Rc8 {[%clk 0:00:49]} 44. Bf2 {[%clk 0:00:20]}  Rc3+ {[%clk 0:00:48]} 45. Be3 {[%clk 0:00:20]}  Nd4+ {[%clk 0:00:47]} 46. Kf2 {[%clk 0:00:21]}  Rc2+ {[%clk 0:00:47]} 47. Kf1 {[%clk 0:00:21]}  Nf3 {[%clk 0:00:45]} 48. e6 {[%clk 0:00:15]}  Rc6 {[%clk 0:00:33]} 49. e7 {[%clk 0:00:15]}  Re6 {[%clk 0:00:34]} 50. Kf2 {[%clk 0:00:15]}  Nh4 {[%clk 0:00:33]} 51. Rb7 {[%clk 0:00:12]}  Kf7 {[%clk 0:00:32]} 52. Bxb6 {[%clk 0:00:09]}  Ng6 {[%clk 0:00:31]} 53. Be3 {[%clk 0:00:07]}  Nxe7 {[%clk 0:00:29]} 54. Bc5 {[%clk 0:00:08]}  Ke8 {[%clk 0:00:27]} 55. Rxe7+ {[%clk 0:00:08]}  Rxe7 {[%clk 0:00:28]} 56. Bxe7 {[%clk 0:00:09]}  Kd7 {[%clk 0:00:29]} 57. Kg3 {[%clk 0:00:10]}  Kc6 {[%clk 0:00:30]} 58. Kh4 {[%clk 0:00:11]}  Kd7 {[%clk 0:00:30]} 59. Kxh5 {[%clk 0:00:12]}  Ke6 {[%clk 0:00:31]} 60. Kg5 {[%clk 0:00:13]}  Kxe7 {[%clk 0:00:32]} 61. h4 {[%clk 0:00:13]}  Kf7 {[%clk 0:00:33]} 62. a4 {[%clk 0:00:14]}  Kg7 {[%clk 0:00:34]} 63. a5 {[%clk 0:00:15]}  Kh8 {[%clk 0:00:34]} 64. a6 {[%clk 0:00:15]}  Kh7 {[%clk 0:00:35]} 65. a7 {[%clk 0:00:16]}  Kg7 {[%clk 0:00:36]} 66. a8=Q {[%clk 0:00:16]}  Kh7 {[%clk 0:00:37]} 67. b4 {[%clk 0:00:16]}  Kg7 {[%clk 0:00:38]} 68. b5 {[%clk 0:00:17]}  Kh7 {[%clk 0:00:38]} 69. b6 {[%clk 0:00:18]}  Kg7 {[%clk 0:00:39]} 70. Qa7+ {[%clk 0:00:18]}  Kf8 {[%clk 0:00:34]} 71. Kf6 {[%clk 0:00:18]}  Ke8 {[%clk 0:00:33]} 72. Qe7# {[%clk 0:00:18]} 1-0


[Site "https://www.chess.com"]

[Event "Titled Tuesday Blitz January 03 Early 2023"]
[White "Csonka, Balazs"]
[Black "Perez Rodriguez, Jennifer"]
[WhiteFideId "742910"]
[BlackFideId "3507831"]
[WhiteElo "2496"]
[BlackElo "2242"]
[Result "1-0"]
[Round "04"]
[TimeControl "180+2"]
[Date "2023.01.03"]
[WhiteClock "0:00:04"]
[BlackClock "0:00:45"]

1. d4 {[%clk 0:03:00]}  d5 {[%clk 0:02:59]} 2. c4 {[%clk 0:02:59]}  c6 {[%clk 0:02:59]} 3. Nf3 {[%clk 0:02:56]}  Nf6 {[%clk 0:02:59]} 4. Nbd2 {[%clk 0:02:55]}  Bf5 {[%clk 0:02:54]} 5. Nh4 {[%clk 0:02:55]}  Be4 {[%clk 0:02:52]} 6. f3 {[%clk 0:02:52]}  Bg6 {[%clk 0:02:51]} 7. Qb3 {[%clk 0:02:51]}  Qb6 {[%clk 0:02:48]} 8. c5 {[%clk 0:02:32]}  Qxb3 {[%clk 0:02:46]} 9. axb3 {[%clk 0:02:33]}  a6 {[%clk 0:02:44]} 10. b4 {[%clk 0:02:28]}  Nbd7 {[%clk 0:02:41]} 11. Nb3 {[%clk 0:02:26]}  O-O-O {[%clk 0:02:39]} 12. Bf4 {[%clk 0:01:50]}  Nh5 {[%clk 0:02:31]} 13. Bd2 {[%clk 0:01:45]}  e5 {[%clk 0:02:31]} 14. g4 {[%clk 0:01:08]}  Nhf6 {[%clk 0:02:26]} 15. e3 {[%clk 0:01:04]}  e4 {[%clk 0:02:23]} 16. g5 {[%clk 0:00:55]}  Ng8 {[%clk 0:02:06]} 17. Nxg6 {[%clk 0:00:30]}  hxg6 {[%clk 0:02:07]} 18. fxe4 {[%clk 0:00:30]}  dxe4 {[%clk 0:02:07]} 19. b5 {[%clk 0:00:30]}  cxb5 {[%clk 0:01:58]} 20. Bxb5 {[%clk 0:00:29]}  axb5 {[%clk 0:01:52]} 21. Ra8+ {[%clk 0:00:30]}  Kc7 {[%clk 0:01:51]} 22. Ba5+ {[%clk 0:00:30]}  b6 {[%clk 0:01:46]} 23. cxb6+ {[%clk 0:00:31]}  Nxb6 {[%clk 0:01:47]} 24. Bxb6+ {[%clk 0:00:29]}  Kxb6 {[%clk 0:01:47]} 25. Rxd8 {[%clk 0:00:29]}  Bb4+ {[%clk 0:01:45]} 26. Ke2 {[%clk 0:00:29]}  Be7 {[%clk 0:01:45]} 27. Rb8+ {[%clk 0:00:19]}  Kc7 {[%clk 0:01:45]} 28. Rxb5 {[%clk 0:00:19]}  Rh5 {[%clk 0:01:38]} 29. h4 {[%clk 0:00:13]}  f6 {[%clk 0:01:33]} 30. Rb8 {[%clk 0:00:06]}  Kxb8 {[%clk 0:01:32]} 31. Nd2 {[%clk 0:00:06]}  fxg5 {[%clk 0:01:31]} 32. Nxe4 {[%clk 0:00:06]}  gxh4 {[%clk 0:01:29]} 33. Kf3 {[%clk 0:00:06]}  Nf6 {[%clk 0:01:29]} 34. Nf2 {[%clk 0:00:06]}  Rf5+ {[%clk 0:01:27]} 35. Ke2 {[%clk 0:00:05]}  g5 {[%clk 0:01:27]} 36. e4 {[%clk 0:00:05]}  Rf4 {[%clk 0:01:27]} 37. e5 {[%clk 0:00:04]}  Ng4 {[%clk 0:01:24]} 38. Nxg4 {[%clk 0:00:04]}  Rxg4 {[%clk 0:01:24]} 39. Ke3 {[%clk 0:00:04]}  Rg3+ {[%clk 0:01:24]} 40. Ke4 {[%clk 0:00:04]}  g4 {[%clk 0:01:19]} 41. d5 {[%clk 0:00:05]}  Rg2 {[%clk 0:01:11]} 42. d6 {[%clk 0:00:05]}  Re2+ {[%clk 0:01:09]} 43. Kd5 {[%clk 0:00:04]}  Bxd6 {[%clk 0:01:05]} 44. Kxd6 {[%clk 0:00:03]}  h3 {[%clk 0:01:04]} 45. e6 {[%clk 0:00:03]}  Rd2+ {[%clk 0:00:59]} 46. Kc6 {[%clk 0:00:02]}  Rc2+ {[%clk 0:00:52]} 47. Kd7 {[%clk 0:00:02]}  Re2 {[%clk 0:00:52]} 48. e7 {[%clk 0:00:02]}  h2 {[%clk 0:00:46]} 49. Rxh2 {[%clk 0:00:03]}  Rxh2 {[%clk 0:00:44]} 50. e8=Q+ {[%clk 0:00:03]}  Kb7 {[%clk 0:00:45]} 51. Qe4+ {[%clk 0:00:03]}  Kb6 {[%clk 0:00:45]} 52. Qd4+ {[%clk 0:00:03]}  Kb5 {[%clk 0:00:45]} 53. Qe5+ {[%clk 0:00:03]}  Kc4 {[%clk 0:00:45]} 54. Qxh2 {[%clk 0:00:04]} 1-0


[Site "https://www.chess.com"]

[Event "Titled Tuesday Blitz January 03 Early 2023"]
[White "Lopez Del Alamo, Antonio"]
[Black "Khoroshev, Nikita"]
[WhiteFideId "2227339"]
[BlackFideId "14200287"]
[WhiteElo "2280"]
[BlackElo "2336"]
[Result "0-1"]
[Round "04"]
[TimeControl "180+2"]
[Date "2023.01.03"]
[WhiteClock "0:00:05"]
[BlackClock "0:00:11"]

1. e4 {[%clk 0:03:00]}  c5 {[%clk 0:02:58]} 2. Nf3 {[%clk 0:03:00]}  e6 {[%clk 0:02:58]} 3. d3 {[%clk 0:02:59]}  Nc6 {[%clk 0:02:51]} 4. g3 {[%clk 0:02:59]}  g6 {[%clk 0:02:49]} 5. Bg2 {[%clk 0:02:53]}  Bg7 {[%clk 0:02:49]} 6. O-O {[%clk 0:02:51]}  Nge7 {[%clk 0:02:27]} 7. c3 {[%clk 0:02:49]}  d5 {[%clk 0:02:24]} 8. Nbd2 {[%clk 0:02:47]}  b6 {[%clk 0:02:21]} 9. Re1 {[%clk 0:02:45]}  Bb7 {[%clk 0:02:18]} 10. a3 {[%clk 0:02:40]}  Qd7 {[%clk 0:02:15]} 11. Qe2 {[%clk 0:02:39]}  dxe4 {[%clk 0:01:55]} 12. dxe4 {[%clk 0:02:37]}  O-O-O {[%clk 0:01:55]} 13. Bf1 {[%clk 0:02:21]}  h6 {[%clk 0:01:46]} 14. Nc4 {[%clk 0:02:12]}  g5 {[%clk 0:01:46]} 15. h3 {[%clk 0:02:09]}  Ng6 {[%clk 0:01:44]} 16. Qc2 {[%clk 0:01:53]}  Qc7 {[%clk 0:01:41]} 17. b4 {[%clk 0:01:27]}  Nce5 {[%clk 0:01:22]} 18. Nfxe5 {[%clk 0:01:23]}  Nxe5 {[%clk 0:01:23]} 19. Nxe5 {[%clk 0:01:03]}  Qxe5 {[%clk 0:01:20]} 20. Bb2 {[%clk 0:00:58]}  h5 {[%clk 0:01:13]} 21. Rab1 {[%clk 0:00:52]}  c4 {[%clk 0:01:00]} 22. Bxc4 {[%clk 0:00:42]}  h4 {[%clk 0:01:00]} 23. g4 {[%clk 0:00:36]}  Qf4 {[%clk 0:00:57]} 24. Bc1 {[%clk 0:00:22]}  Qf3 {[%clk 0:00:54]} 25. Bf1 {[%clk 0:00:17]}  Qxc3 {[%clk 0:00:46]} 26. Qxc3+ {[%clk 0:00:15]}  Bxc3 {[%clk 0:00:47]} 27. Bxg5 {[%clk 0:00:14]}  Bxe1 {[%clk 0:00:45]} 28. Bxd8 {[%clk 0:00:14]}  Bxf2+ {[%clk 0:00:45]} 29. Kxf2 {[%clk 0:00:14]}  Rxd8 {[%clk 0:00:45]} 30. Ke3 {[%clk 0:00:14]}  e5 {[%clk 0:00:42]} 31. Bc4 {[%clk 0:00:13]}  Rd4 {[%clk 0:00:39]} 32. Bd3 {[%clk 0:00:11]}  Kd7 {[%clk 0:00:37]} 33. Rf1 {[%clk 0:00:11]}  Ke6 {[%clk 0:00:34]} 34. Rf5 {[%clk 0:00:12]}  a5 {[%clk 0:00:31]} 35. bxa5 {[%clk 0:00:11]}  bxa5 {[%clk 0:00:32]} 36. Rh5 {[%clk 0:00:10]}  Ra4 {[%clk 0:00:31]} 37. Rh6+ {[%clk 0:00:10]}  Ke7 {[%clk 0:00:25]} 38. Rb6 {[%clk 0:00:11]}  Bc8 {[%clk 0:00:25]} 39. Rb3 {[%clk 0:00:10]}  Be6 {[%clk 0:00:24]} 40. Rc3 {[%clk 0:00:10]}  Kd6 {[%clk 0:00:24]} 41. Bb5 {[%clk 0:00:10]}  Rd4 {[%clk 0:00:24]} 42. a4 {[%clk 0:00:10]}  Rb4 {[%clk 0:00:23]} 43. Rc6+ {[%clk 0:00:10]}  Ke7 {[%clk 0:00:23]} 44. Rc7+ {[%clk 0:00:09]}  Kf6 {[%clk 0:00:24]} 45. Ra7 {[%clk 0:00:09]}  Rb3+ {[%clk 0:00:24]} 46. Kf2 {[%clk 0:00:10]}  Rxh3 {[%clk 0:00:24]} 47. Rxa5 {[%clk 0:00:10]}  Bxg4 {[%clk 0:00:22]} 48. Bf1 {[%clk 0:00:09]}  Rh2+ {[%clk 0:00:20]} 49. Kg1 {[%clk 0:00:10]}  Ra2 {[%clk 0:00:20]} 50. Ra6+ {[%clk 0:00:09]}  Kg5 {[%clk 0:00:19]} 51. Ra8 {[%clk 0:00:09]}  h3 {[%clk 0:00:17]} 52. Rg8+ {[%clk 0:00:08]}  Kf4 {[%clk 0:00:18]} 53. a5 {[%clk 0:00:08]}  h2+ {[%clk 0:00:12]} 54. Kh1 {[%clk 0:00:08]}  Ra1 {[%clk 0:00:11]} 55. Kxh2 {[%clk 0:00:07]}  Rxf1 {[%clk 0:00:11]} 56. a6 {[%clk 0:00:08]}  Ra1 {[%clk 0:00:11]} 57. Rf8 {[%clk 0:00:06]}  f5 {[%clk 0:00:10]} 58. exf5 {[%clk 0:00:05]}  Bf3 {[%clk 0:00:11]} 0-1


[Site "https://www.chess.com"]

[Event "Titled Tuesday Blitz January 03 Early 2023"]
[White "Omelja, Artem"]
[Black "Indjic, Aleksandar"]
[WhiteFideId "14119846"]
[BlackFideId "911925"]
[WhiteElo "2446"]
[BlackElo "2618"]
[Result "0-1"]
[Round "04"]
[TimeControl "180+2"]
[Date "2023.01.03"]
[WhiteClock "0:00:03"]
[BlackClock "0:01:24"]

1. e4 {[%clk 0:03:00]}  c5 {[%clk 0:02:59]} 2. Nf3 {[%clk 0:03:00]}  d6 {[%clk 0:03:00]} 3. Bb5+ {[%clk 0:02:58]}  Nd7 {[%clk 0:02:59]} 4. a4 {[%clk 0:02:57]}  Nf6 {[%clk 0:02:58]} 5. Qe2 {[%clk 0:02:42]}  a6 {[%clk 0:02:58]} 6. Bc4 {[%clk 0:02:42]}  e6 {[%clk 0:02:58]} 7. O-O {[%clk 0:02:41]}  Be7 {[%clk 0:02:49]} 8. c3 {[%clk 0:02:38]}  O-O {[%clk 0:02:45]} 9. Re1 {[%clk 0:02:37]}  Nxe4 {[%clk 0:02:41]} 10. Qxe4 {[%clk 0:02:37]}  d5 {[%clk 0:02:41]} 11. Bxd5 {[%clk 0:01:49]}  Nf6 {[%clk 0:02:41]} 12. Qe2 {[%clk 0:01:29]}  Nxd5 {[%clk 0:02:41]} 13. d4 {[%clk 0:01:30]}  cxd4 {[%clk 0:02:35]} 14. Nxd4 {[%clk 0:01:29]}  Qc7 {[%clk 0:02:35]} 15. Na3 {[%clk 0:01:14]}  b6 {[%clk 0:02:30]} 16. Nc4 {[%clk 0:01:11]}  Bb7 {[%clk 0:02:30]} 17. Ne5 {[%clk 0:01:01]}  Bd6 {[%clk 0:02:30]} 18. Nef3 {[%clk 0:01:01]}  Rae8 {[%clk 0:02:28]} 19. Bd2 {[%clk 0:00:58]}  e5 {[%clk 0:02:17]} 20. Nf5 {[%clk 0:00:57]}  e4 {[%clk 0:02:16]} 21. Nxd6 {[%clk 0:00:51]}  Qxd6 {[%clk 0:02:15]} 22. Nd4 {[%clk 0:00:51]}  f5 {[%clk 0:02:06]} 23. Rad1 {[%clk 0:00:38]}  f4 {[%clk 0:02:01]} 24. Qc4 {[%clk 0:00:33]}  Kh8 {[%clk 0:01:59]} 25. Bc1 {[%clk 0:00:31]}  Qg6 {[%clk 0:01:59]} 26. Nb3 {[%clk 0:00:22]}  f3 {[%clk 0:01:23]} 27. g3 {[%clk 0:00:22]}  e3 {[%clk 0:01:24]} 28. Rxd5 {[%clk 0:00:11]}  exf2+ {[%clk 0:01:23]} 29. Kxf2 {[%clk 0:00:10]}  Rxe1 {[%clk 0:01:23]} 30. Kxe1 {[%clk 0:00:10]}  f2+ {[%clk 0:01:23]} 31. Kf1 {[%clk 0:00:08]}  Qf7 {[%clk 0:01:23]} 32. Rd4 {[%clk 0:00:02]}  Bg2+ {[%clk 0:01:23]} 33. Kxg2 {[%clk 0:00:02]}  f1=Q+ {[%clk 0:01:23]} 34. Qxf1 {[%clk 0:00:03]}  Qxf1# {[%clk 0:01:24]} 0-1


[Site "https://www.chess.com"]

[Event "Titled Tuesday Blitz January 03 Early 2023"]
[White "Mei, Austin"]
[Black "Harshavardhan G B"]
[WhiteFideId "30948479"]
[BlackFideId "25059009"]
[WhiteElo "2218"]
[BlackElo "2408"]
[Result "0-1"]
[Round "04"]
[TimeControl "180+2"]
[Date "2023.01.03"]
[WhiteClock "0:00:07"]
[BlackClock "0:00:09"]

1. e4 {[%clk 0:03:00]}  e5 {[%clk 0:02:59]} 2. Nf3 {[%clk 0:03:01]}  Nc6 {[%clk 0:02:59]} 3. Bc4 {[%clk 0:03:01]}  Nf6 {[%clk 0:02:58]} 4. Ng5 {[%clk 0:03:01]}  d5 {[%clk 0:02:55]} 5. exd5 {[%clk 0:03:02]}  Nd4 {[%clk 0:02:55]} 6. c3 {[%clk 0:02:58]}  b5 {[%clk 0:02:54]} 7. Bf1 {[%clk 0:02:59]}  Nxd5 {[%clk 0:02:53]} 8. cxd4 {[%clk 0:02:59]}  Qxg5 {[%clk 0:02:52]} 9. Bxb5+ {[%clk 0:02:59]}  Kd8 {[%clk 0:02:52]} 10. O-O {[%clk 0:02:59]}  Bb7 {[%clk 0:02:51]} 11. Qf3 {[%clk 0:03:00]}  Rb8 {[%clk 0:02:51]} 12. dxe5 {[%clk 0:03:00]}  Ne3 {[%clk 0:02:47]} 13. Qh3 {[%clk 0:03:00]}  Qxg2+ {[%clk 0:02:47]} 14. Qxg2 {[%clk 0:03:00]}  Nxg2 {[%clk 0:02:48]} 15. d4 {[%clk 0:03:01]}  Be7 {[%clk 0:02:47]} 16. Nc3 {[%clk 0:02:38]}  Nh4 {[%clk 0:02:47]} 17. f4 {[%clk 0:02:01]}  Nf3+ {[%clk 0:02:46]} 18. Kf2 {[%clk 0:02:02]}  Nxd4 {[%clk 0:02:45]} 19. Be3 {[%clk 0:01:33]}  Bh4+ {[%clk 0:02:44]} 20. Kg1 {[%clk 0:01:32]}  Nf3+ {[%clk 0:02:45]} 21. Kg2 {[%clk 0:01:01]}  Ng5+ {[%clk 0:02:21]} 22. Rf3 {[%clk 0:00:51]}  Bxf3+ {[%clk 0:02:17]} 23. Kf1 {[%clk 0:00:51]}  Nh3 {[%clk 0:01:49]} 24. Bxa7 {[%clk 0:00:51]}  Ra8 {[%clk 0:01:47]} 25. Bc5 {[%clk 0:00:47]}  Be7 {[%clk 0:01:44]} 26. Be3 {[%clk 0:00:45]}  Kc8 {[%clk 0:01:37]} 27. a4 {[%clk 0:00:44]}  Bb4 {[%clk 0:01:31]} 28. Bc4 {[%clk 0:00:25]}  g5 {[%clk 0:00:53]} 29. fxg5 {[%clk 0:00:15]}  Kb7 {[%clk 0:00:52]} 30. Nd5 {[%clk 0:00:14]}  Ba5 {[%clk 0:00:46]} 31. Nf6 {[%clk 0:00:11]}  Bb6 {[%clk 0:00:42]} 32. Bxb6 {[%clk 0:00:07]}  cxb6 {[%clk 0:00:39]} 33. Ra3 {[%clk 0:00:08]}  Nxg5 {[%clk 0:00:36]} 34. h4 {[%clk 0:00:07]}  Rac8 {[%clk 0:00:31]} 35. hxg5 {[%clk 0:00:06]}  Rxc4 {[%clk 0:00:28]} 36. Rxf3 {[%clk 0:00:07]}  Rxa4 {[%clk 0:00:23]} 37. b3 {[%clk 0:00:06]}  Ra1+ {[%clk 0:00:21]} 38. Kg2 {[%clk 0:00:06]}  h6 {[%clk 0:00:20]} 39. Rh3 {[%clk 0:00:03]}  Ra2+ {[%clk 0:00:19]} 40. Kf3 {[%clk 0:00:03]}  Ra3 {[%clk 0:00:18]} 41. Ke4 {[%clk 0:00:03]}  Ra1 {[%clk 0:00:15]} 42. Rxh6 {[%clk 0:00:03]}  Rxh6 {[%clk 0:00:13]} 43. gxh6 {[%clk 0:00:04]}  Rh1 {[%clk 0:00:14]} 44. h7 {[%clk 0:00:05]}  Kc6 {[%clk 0:00:13]} 45. Kf5 {[%clk 0:00:06]}  Kc5 {[%clk 0:00:13]} 46. Kg5 {[%clk 0:00:06]}  Kb4 {[%clk 0:00:11]} 47. Nh5 {[%clk 0:00:07]}  Rg1+ {[%clk 0:00:10]} 48. Kh6 {[%clk 0:00:07]}  Rg6# {[%clk 0:00:09]} 0-1


[Site "https://www.chess.com"]

[Event "Titled Tuesday Blitz January 03 Early 2023"]
[White "Dushyant Sharma"]
[Black "Williams, Simon K"]
[WhiteFideId "25065130"]
[BlackFideId "404454"]
[WhiteElo "2355"]
[BlackElo "2465"]
[Result "0-1"]
[Round "04"]
[TimeControl "180+2"]
[Date "2023.01.03"]
[WhiteClock "0:00:15"]
[BlackClock "0:00:43"]

1. e4 {[%clk 0:03:00]}  c5 {[%clk 0:02:58]} 2. Nf3 {[%clk 0:03:00]}  d6 {[%clk 0:02:56]} 3. d4 {[%clk 0:03:00]}  cxd4 {[%clk 0:02:57]} 4. Nxd4 {[%clk 0:03:01]}  Nf6 {[%clk 0:02:57]} 5. Nc3 {[%clk 0:03:01]}  g6 {[%clk 0:02:57]} 6. f4 {[%clk 0:03:01]}  Nbd7 {[%clk 0:02:53]} 7. Nf3 {[%clk 0:03:00]}  Qc7 {[%clk 0:02:52]} 8. Bd3 {[%clk 0:02:59]}  Bg7 {[%clk 0:02:52]} 9. O-O {[%clk 0:02:59]}  O-O {[%clk 0:02:51]} 10. Kh1 {[%clk 0:02:58]}  a6 {[%clk 0:02:50]} 11. a4 {[%clk 0:02:57]}  b6 {[%clk 0:02:49]} 12. Qe1 {[%clk 0:02:51]}  Nc5 {[%clk 0:02:46]} 13. Bd2 {[%clk 0:02:51]}  Bb7 {[%clk 0:02:40]} 14. b4 {[%clk 0:02:46]}  Nxd3 {[%clk 0:02:39]} 15. cxd3 {[%clk 0:02:46]}  e6 {[%clk 0:02:31]} 16. Rc1 {[%clk 0:02:44]}  Qd7 {[%clk 0:02:29]} 17. Qh4 {[%clk 0:02:43]}  Rac8 {[%clk 0:02:10]} 18. h3 {[%clk 0:02:30]}  d5 {[%clk 0:02:01]} 19. e5 {[%clk 0:02:15]}  Ne8 {[%clk 0:01:56]} 20. Ng5 {[%clk 0:02:13]}  h6 {[%clk 0:01:56]} 21. Nf3 {[%clk 0:02:13]}  Nc7 {[%clk 0:01:29]} 22. Be3 {[%clk 0:01:58]}  d4 {[%clk 0:01:27]} 23. Nxd4 {[%clk 0:01:46]}  Nd5 {[%clk 0:01:26]} 24. Nxd5 {[%clk 0:01:36]}  Qxd5 {[%clk 0:01:26]} 25. Qg3 {[%clk 0:01:33]}  Rfd8 {[%clk 0:01:19]} 26. b5 {[%clk 0:01:23]}  a5 {[%clk 0:01:14]} 27. Rc4 {[%clk 0:01:06]}  Rxc4 {[%clk 0:01:13]} 28. dxc4 {[%clk 0:01:07]}  Qxc4 {[%clk 0:01:13]} 29. Rc1 {[%clk 0:01:04]}  Qxa4 {[%clk 0:01:08]} 30. Nc6 {[%clk 0:01:04]}  Rd3 {[%clk 0:01:02]} 31. Qf2 {[%clk 0:00:33]}  Qxb5 {[%clk 0:01:00]} 32. Ne7+ {[%clk 0:00:33]}  Kh7 {[%clk 0:00:59]} 33. Rc7 {[%clk 0:00:32]}  Be4 {[%clk 0:00:56]} 34. Bxb6 {[%clk 0:00:32]}  a4 {[%clk 0:00:55]} 35. Bc5 {[%clk 0:00:31]}  a3 {[%clk 0:00:50]} 36. Ra7 {[%clk 0:00:27]}  Rc3 {[%clk 0:00:44]} 37. Bxa3 {[%clk 0:00:22]}  Rc2 {[%clk 0:00:44]} 38. Qg3 {[%clk 0:00:15]}  Qf1+ {[%clk 0:00:43]} 39. Kh2 {[%clk 0:00:15]}  Rxg2+ {[%clk 0:00:43]} 0-1


[Site "https://www.chess.com"]

[Event "Titled Tuesday Blitz January 03 Early 2023"]
[White "Lehtosaari, Mauri"]
[Black "Agasarov, Benik"]
[WhiteFideId "501999"]
[BlackFideId "13314823"]
[WhiteElo "2176"]
[BlackElo "2235"]
[Result "0-1"]
[Round "04"]
[TimeControl "180+2"]
[Date "2023.01.03"]
[WhiteClock "0:01:48"]
[BlackClock "0:02:16"]

1. d4 {[%clk 0:03:00]}  d5 {[%clk 0:02:58]} 2. Nf3 {[%clk 0:03:01]}  Nf6 {[%clk 0:02:57]} 3. Bg5 {[%clk 0:03:02]}  Ne4 {[%clk 0:02:56]} 4. Bf4 {[%clk 0:03:02]}  Bf5 {[%clk 0:02:55]} 5. c4 {[%clk 0:03:02]}  e6 {[%clk 0:02:55]} 6. Nc3 {[%clk 0:03:02]}  Bb4 {[%clk 0:02:54]} 7. Qb3 {[%clk 0:03:02]}  Nc6 {[%clk 0:02:54]} 8. e3 {[%clk 0:03:02]}  a5 {[%clk 0:02:53]} 9. Ne5 {[%clk 0:02:52]}  a4 {[%clk 0:02:47]} 10. Nxc6 {[%clk 0:02:31]}  axb3 {[%clk 0:02:46]} 11. Nxd8 {[%clk 0:02:31]}  Kxd8 {[%clk 0:02:47]} 12. O-O-O {[%clk 0:01:56]}  Nxc3 {[%clk 0:02:38]} 13. bxc3 {[%clk 0:01:53]}  Bxc3 {[%clk 0:02:18]} 14. axb3 {[%clk 0:01:48]}  Ra1# {[%clk 0:02:16]} 0-1


[Site "https://www.chess.com"]